[Event "Dvaro taure"]
[Site "Taujenai, Lithuania"]
[Date "2021.11.28"]
[Round "7.17"]
[White "Bubnys, Marius"]
[Black "Kurmis, Edvinas"]
[Result "0-1"]
[WhiteElo "1490"]
[BlackElo "1665"]
[PlyCount "102"]
[EventDate "2021.??.??"]
[TimeControl "10+5"]
[WhiteClock "0:00:12"]
[BlackClock "0:00:50"]

1. c4 {[%emt 0:28:45]} c5 {[%emt 0:00:04]} 2. Nc3 {[%emt 0:00:00]} Nc6 {[%emt
0:00:02]} 3. Nf3 {[%emt 0:00:00]} Nf6 {[%emt 0:00:04]} 4. g3 {[%emt 0:00:01]}
g6 {[%emt 0:00:00]} 5. Bg2 {[%emt 0:00:01]} Bg7 {[%emt 0:00:00]} 6. O-O {[%emt
0:00:03]} O-O {[%emt 0:00:02]} 7. d3 {[%emt 0:00:02]} d6 {[%emt 0:00:08]} 8.
Bg5 {[%emt 0:00:06]} a6 {[%emt 0:00:16]} 9. Qd2 {[%emt 0:00:02]} Re8 {[%emt 0:
00:13]} 10. a3 {[%emt 0:00:25]} Bd7 {[%emt 0:00:10]} 11. e4 {[%emt 0:00:16]} e6
{[%emt 0:00:38]} 12. Rab1 {[%emt 0:00:09]} Qc7 {[%emt 0:00:08]} 13. b4 {[%emt
0:00:13]} Nd4 {[%emt 0:00:18]} 14. Nxd4 {[%emt 0:00:16]} cxd4 {[%emt 0:00:02]}
15. Ne2 {[%emt 0:00:18]} e5 {[%emt 0:00:02]} 16. Bxf6 {[%emt 0:00:31]} Bxf6 {
[%emt 0:00:02]} 17. f4 {[%emt 0:00:03]} Bg7 {[%emt 0:00:09]} 18. h3 {[%emt 0:
00:37]} b5 {[%emt 0:00:07]} 19. Rbc1 {[%emt 0:00:14]} bxc4 {[%emt 0:00:27]} 20.
Rxc4 {[%emt 0:00:13]} Qb7 {[%emt 0:00:01]} 21. Rfc1 {[%emt 0:00:10]} Rac8 {
[%emt 0:00:04]} 22. g4 {[%emt 0:00:53]} Bb5 {[%emt 0:00:12]} 23. Rxc8 {[%emt 0:
00:14]} Rxc8 {[%emt 0:00:02]} 24. Rxc8+ {[%emt 0:00:28]} Qxc8 {[%emt 0:00:02]}
25. f5 {[%emt 0:00:16]} Qd7 {[%emt 0:02:04]} 26. Qc2 {[%emt 0:01:13]} Bh6 {
[%emt 0:00:17]} 27. Kh2 {[%emt 0:00:47]} Qc6 {[%emt 0:00:07]} 28. Qb3 {[%emt 0:
00:54]} Ba4 {[%emt 0:00:31]} 29. Qc4 {[%emt 0:00:53]} Bd2 {[%emt 0:01:55]} 30.
fxg6 {[%emt 0:01:03]} hxg6 {[%emt 0:00:01]} 31. h4 {[%emt 0:00:56]} Qxc4 {
[%emt 0:00:24]} 32. dxc4 {[%emt 0:00:01]} d3 {[%emt 0:00:01]} 33. Ng3 {[%emt 0:
00:18]} Bf4 {[%emt 0:00:04]} 34. Bf3 {[%emt 0:00:28]} d2 {[%emt 0:00:03]} 35.
c5 {[%emt 0:00:03]} dxc5 {[%emt 0:01:44]} 36. bxc5 {[%emt 0:00:02]} d1=Q {
[%emt 0:00:07]} 37. Bxd1 {[%emt 0:00:01]} Bxd1 {[%emt 0:00:02]} 38. c6 {[%emt
0:00:28]} Ba4 {[%emt 0:00:02]} 39. c7 {[%emt 0:00:11]} Bd7 {[%emt 0:00:02]} 40.
Kg2 {[%emt 0:00:03]} Be3 {[%emt 0:01:15]} 41. h5 {[%emt 0:00:22]} Bb6 {[%emt 0:
00:09]} 42. hxg6 {[%emt 0:00:02]} fxg6 {[%emt 0:00:04]} 43. Ne2 {[%emt 0:00:02]
} Bxc7 {[%emt 0:00:15]} 44. Kf3 {[%emt 0:00:02]} Bd6 {[%emt 0:00:13]} 45. Nc3 {
[%emt 0:00:05]} Bxa3 {[%emt 0:00:18]} 46. Nd5 {[%emt 0:00:01]} Kf7 {[%emt 0:00:
16]} 47. g5 {[%emt 0:00:09]} Bc6 {[%emt 0:00:08]} 48. Nf6 {[%emt 0:00:03]} Be7
{[%emt 0:00:08]} 49. Ng4 {[%emt 0:00:01]} Ke6 {[%emt 0:00:07]} 50. Nf2 {[%emt
0:00:17]} Bxg5 {[%emt 0:00:04]} 51. Nd3 {[%emt 0:00:01]} Be7 {[%emt 0:00:05]}
0-1

[Event "Dvaro taure"]
[Site "Taujenai, Lithuania"]
[Date "2021.11.28"]
[Round "7.18"]
[White "Breikss, Peteris"]
[Black "Mecelis, Arturas (J)"]
[Result "1-0"]
[WhiteElo "1622"]
[BlackElo "1562"]
[PlyCount "71"]
[EventDate "2021.??.??"]
[TimeControl "10+5"]
[WhiteClock "0:00:42"]

1. e4 {[%emt 0:10:16]} e5 {[%emt 0:00:05]} 2. Nf3 {[%emt 0:00:01]} Nc6 {[%emt
0:00:00]} 3. Bb5 {[%emt 0:00:02]} a6 {[%emt 0:00:00]} 4. Ba4 {[%emt 0:00:01]}
b5 {[%emt 0:00:06]} 5. Bb3 {[%emt 0:00:02]} Nf6 {[%emt 0:00:27]} 6. O-O {[%emt
0:00:06]} Bc5 {[%emt 0:00:07]} 7. c3 {[%emt 0:00:11]} d6 {[%emt 0:00:15]} 8. d4
{[%emt 0:00:06]} exd4 {[%emt 0:00:03]} 9. cxd4 {[%emt 0:00:02]} Bb6 {[%emt 0:
00:06]} 10. Bg5 {[%emt 0:00:15]} O-O {[%emt 0:00:51]} 11. e5 {[%emt 0:00:11]}
dxe5 {[%emt 0:00:02]} 12. d5 {[%emt 0:00:45]} Nd4 {[%emt 0:01:17]} 13. Nxd4 {
[%emt 0:02:18]} Bxd4 {[%emt 0:00:05]} 14. Nc3 {[%emt 0:00:12]} Qd6 {[%emt 0:00:
16]} 15. Qf3 {[%emt 0:01:16]} Nd7 {[%emt 0:03:38]} 16. Ne4 {[%emt 0:00:41]} Qg6
{[%emt 0:00:31]} 17. h4 {[%emt 0:01:07]} Nc5 {[%emt 0:00:48]} 18. Nxc5 {[%emt
0:00:42]} Bxc5 {[%emt 0:00:03]} 19. Be3 {[%emt 0:00:23]} Bd6 {[%emt 0:00:23]}
20. h5 {[%emt 0:00:31]} Qg4 {[%emt 0:01:01]} 21. Qxg4 {[%emt 0:00:02]} Bxg4 {
[%emt 0:00:02]} 22. h6 {[%emt 0:00:01]} f5 {[%emt 0:00:22]} 23. hxg7 {[%emt 0:
00:08]} Kxg7 {[%emt 0:00:02]} 24. f4 {[%emt 0:00:14]} e4 {[%emt 0:00:46]} 25.
Bd4+ {[%emt 0:00:06]} Kf7 {[%emt 0:00:20]} 26. a4 {[%emt 0:00:07]} Rfe8 {[%emt
0:00:25]} 27. axb5 {[%emt 0:00:23]} Be2 {[%emt 0:00:01]} 28. Rfc1 {[%emt 0:00:
19]} Bxf4 {[%emt 0:00:03]} 29. Rc6 {[%emt 0:00:13]} Ke7 {[%emt 0:00:19]} 30.
bxa6 {[%emt 0:00:33]} Kd7 {[%emt 0:00:03]} 31. Rf6 {[%emt 0:00:13]} Rf8 {[%emt
0:00:13]} 32. Rxf8 {[%emt 0:00:35]} Rxf8 {[%emt 0:00:01]} 33. a7 {[%emt 0:00:
01]} Ra8 {[%emt 0:00:02]} 34. Ba4+ {[%emt 0:00:09]} Kd6 {[%emt 0:00:17]} 35.
Bc6 {[%emt 0:00:04]} Ba6 {[%emt 0:00:09]} 36. Bxa8 {[%emt 0:00:08]} 1-0

[Event "Dvaro taure"]
[Site "Taujenai, Lithuania"]
[Date "2021.11.28"]
[Round "7.19"]
[White "Jonaitis, Herkus"]
[Black "Cmilis, Viktoras"]
[Result "1/2-1/2"]
[WhiteElo "1277"]
[BlackElo "1621"]
[PlyCount "112"]
[EventDate "2021.??.??"]
[TimeControl "10+5"]
[WhiteClock "0:03:49"]
[BlackClock "0:00:58"]

1. d4 {[%emt 0:00:00]} d5 {[%emt 0:00:02]} 2. c4 {[%emt 0:00:02]} c6 {[%emt 0:
00:02]} 3. cxd5 {[%emt 0:00:02]} cxd5 {[%emt 0:00:02]} 4. Nc3 {[%emt 0:00:02]}
Nf6 {[%emt 0:00:06]} 5. Nf3 {[%emt 0:00:02]} Nc6 {[%emt 0:00:03]} 6. Bf4 {
[%emt 0:00:02]} Bf5 {[%emt 0:00:03]} 7. e3 {[%emt 0:00:02]} e6 {[%emt 0:00:03]}
8. Bb5 {[%emt 0:00:03]} Nd7 {[%emt 0:00:07]} 9. O-O {[%emt 0:00:10]} Be7 {
[%emt 0:00:04]} 10. Qa4 {[%emt 0:00:04]} Rc8 {[%emt 0:00:05]} 11. Bxc6 {[%emt
0:00:08]} Rxc6 {[%emt 0:00:06]} 12. Qxa7 {[%emt 0:00:31]} Qc8 {[%emt 0:00:10]}
13. Qa4 {[%emt 0:00:22]} O-O {[%emt 0:00:13]} 14. Rac1 {[%emt 0:00:18]} h6 {
[%emt 0:00:19]} 15. Qd1 {[%emt 0:00:21]} Qd8 {[%emt 0:00:13]} 16. Ne5 {[%emt 0:
00:35]} Nxe5 {[%emt 0:00:04]} 17. Bxe5 {[%emt 0:00:03]} f6 {[%emt 0:00:14]} 18.
Bg3 {[%emt 0:00:14]} Qe8 {[%emt 0:00:17]} 19. Qd2 {[%emt 0:00:32]} Ra6 {[%emt
0:00:27]} 20. a3 {[%emt 0:00:14]} g5 {[%emt 0:00:15]} 21. h3 {[%emt 0:00:24]}
Kg7 {[%emt 0:00:13]} 22. Nb5 {[%emt 0:00:07]} Qg6 {[%emt 0:00:15]} 23. Rc7 {
[%emt 0:00:21]} Rf7 {[%emt 0:00:08]} 24. Rxb7 {[%emt 0:00:25]} h5 {[%emt 0:00:
43]} 25. Rc1 {[%emt 0:00:11]} h4 {[%emt 0:03:43]} 26. Bh2 {[%emt 0:00:02]} g4 {
[%emt 0:00:24]} 27. Bf4 {[%emt 0:00:32]} gxh3 {[%emt 0:00:10]} 28. g3 {[%emt 0:
00:56]} Qg4 {[%emt 0:00:00]} 29. Qd1 {[%emt 0:00:10]} hxg3 {[%emt 0:01:01]} 30.
Qxg4+ {[%emt 0:00:10]} Bxg4 {[%emt 0:00:03]} 31. fxg3 {[%emt 0:00:03]} Be2 {
[%emt 0:00:21]} 32. Nc3 {[%emt 0:00:56]} Bd3 {[%emt 0:00:18]} 33. Kh2 {[%emt 0:
00:10]} Ra8 {[%emt 0:00:25]} 34. a4 {[%emt 0:00:45]} Kg6 {[%emt 0:00:04]} 35.
Ra1 {[%emt 0:00:18]} Kf5 {[%emt 0:00:50]} 36. Bd6 {[%emt 0:00:36]} Re8 {[%emt
0:00:16]} 37. a5 {[%emt 0:00:20]} Kg6 {[%emt 0:00:03]} 38. Bxe7 {[%emt 0:00:05]
} Rexe7 {[%emt 0:00:02]} 39. Rxe7 {[%emt 0:00:10]} Rxe7 {[%emt 0:00:01]} 40. a6
{[%emt 0:00:03]} Ra7 {[%emt 0:00:02]} 41. b4 {[%emt 0:00:10]} Rxa6 {[%emt 0:00:
07]} 42. Rxa6 {[%emt 0:00:06]} Bxa6 {[%emt 0:00:02]} 43. Kxh3 {[%emt 0:00:05]}
Kf5 {[%emt 0:00:05]} 44. g4+ {[%emt 0:00:04]} Kg5 {[%emt 0:00:02]} 45. b5 {
[%emt 0:00:08]} Bb7 {[%emt 0:00:03]} 46. b6 {[%emt 0:00:03]} f5 {[%emt 0:00:04]
} 47. gxf5 {[%emt 0:00:07]} Kxf5 {[%emt 0:00:02]} 48. Kg3 {[%emt 0:00:03]} Bc6
{[%emt 0:00:04]} 49. Nb5 {[%emt 0:00:07]} Ke4 {[%emt 0:00:08]} 50. Nd6+ {[%emt
0:00:02]} Kxe3 {[%emt 0:00:03]} 51. b7 {[%emt 0:00:09]} Bxb7 {[%emt 0:00:02]}
52. Nxb7 {[%emt 0:00:02]} Kxd4 {[%emt 0:00:02]} 53. Kf3 {[%emt 0:00:02]} Kd3 {
[%emt 0:00:02]} 54. Nc5+ {[%emt 0:00:08]} Kc4 {[%emt 0:00:02]} 55. Nxe6 {[%emt
0:00:02]} d4 {[%emt 0:00:03]} 56. Nxd4 {[%emt 0:00:02]} Kxd4 {[%emt 0:00:01]}
1/2-1/2

[Event "Dvaro taure"]
[Site "Taujenai, Lithuania"]
[Date "2021.11.28"]
[Round "7.20"]
[White "Vainermanas, Berelis"]
[Black "Posaskov, Sergej"]
[Result "1/2-1/2"]
[WhiteElo "1663"]
[BlackElo "1539"]
[PlyCount "56"]
[EventDate "2021.??.??"]
[TimeControl "10+5"]
[WhiteClock "0:03:12"]
[BlackClock "0:05:12"]

1. d4 {[%emt 0:00:00]} Nf6 {[%emt 0:00:04]} 2. Nf3 {[%emt 0:00:03]} c6 {[%emt
0:00:15]} 3. c4 {[%emt 0:00:03]} e6 {[%emt 0:00:36]} 4. a3 {[%emt 0:00:06]} d5
{[%emt 0:00:06]} 5. cxd5 {[%emt 0:00:14]} exd5 {[%emt 0:00:02]} 6. Nc3 {[%emt
0:00:05]} Nbd7 {[%emt 0:00:03]} 7. Bg5 {[%emt 0:00:06]} Be7 {[%emt 0:00:02]} 8.
e3 {[%emt 0:00:03]} O-O {[%emt 0:00:35]} 9. Bd3 {[%emt 0:00:02]} Ne8 {[%emt 0:
00:43]} 10. Bf4 {[%emt 0:00:16]} g6 {[%emt 0:00:02]} 11. O-O {[%emt 0:00:14]}
Bf6 {[%emt 0:00:08]} 12. e4 {[%emt 0:00:25]} dxe4 {[%emt 0:00:07]} 13. Nxe4 {
[%emt 0:00:02]} Bg7 {[%emt 0:00:06]} 14. Bc4 {[%emt 0:00:19]} Nb6 {[%emt 0:00:
04]} 15. Ba2 {[%emt 0:00:14]} Bf5 {[%emt 0:00:07]} 16. Nc5 {[%emt 0:00:21]} Bc8
{[%emt 0:00:19]} 17. Bg5 {[%emt 0:00:57]} Qd6 {[%emt 0:00:31]} 18. Re1 {[%emt
0:00:15]} Nf6 {[%emt 0:00:12]} 19. Ne5 {[%emt 0:00:48]} Nbd5 {[%emt 0:00:10]}
20. Ne4 {[%emt 0:00:42]} Nxe4 {[%emt 0:00:12]} 21. Rxe4 {[%emt 0:00:03]} f6 {
[%emt 0:00:03]} 22. Nc4 {[%emt 0:00:10]} Qc7 {[%emt 0:00:26]} 23. Bh4 {[%emt 0:
00:06]} Bf5 {[%emt 0:00:53]} 24. Re1 {[%emt 0:00:25]} b5 {[%emt 0:00:34]} 25.
Ne3 {[%emt 0:00:05]} Qd7 {[%emt 0:00:33]} 26. Rc1 {[%emt 0:00:44]} Be6 {[%emt
0:00:07]} 27. Qf3 {[%emt 0:01:08]} Rac8 {[%emt 0:00:28]} 28. Bg3 {[%emt 0:00:
58]} Bh8 {[%emt 0:00:22]} 1/2-1/2

[Event "Dvaro taure"]
[Site "Taujenai, Lithuania"]
[Date "2021.11.28"]
[Round "7.21"]
[White "Satkauskas, Benediktas"]
[Black "Praspaliauskas, Matas"]
[Result "1/2-1/2"]
[WhiteElo "1392"]
[BlackElo "1443"]
[PlyCount "59"]
[EventDate "2021.??.??"]
[TimeControl "10+5"]
[WhiteClock "0:06:29"]
[BlackClock "0:04:36"]

1. d4 {[%emt 0:00:01]} d5 {[%emt 0:00:00]} 2. Bf4 {[%emt 0:00:02]} Nf6 {[%emt
0:00:03]} 3. e3 {[%emt 0:00:02]} e6 {[%emt 0:00:01]} 4. Nf3 {[%emt 0:00:01]}
Bd6 {[%emt 0:00:04]} 5. Bg5 {[%emt 0:00:02]} O-O {[%emt 0:00:07]} 6. Be2 {
[%emt 0:00:02]} Nbd7 {[%emt 0:00:07]} 7. O-O {[%emt 0:00:04]} b6 {[%emt 0:00:
17]} 8. Nbd2 {[%emt 0:00:06]} Bb7 {[%emt 0:00:03]} 9. Rc1 {[%emt 0:00:04]} c5 {
[%emt 0:00:15]} 10. dxc5 {[%emt 0:00:19]} Nxc5 {[%emt 0:00:30]} 11. c4 {[%emt
0:00:05]} Rc8 {[%emt 0:00:07]} 12. cxd5 {[%emt 0:00:12]} Bxd5 {[%emt 0:00:01]}
13. Bc4 {[%emt 0:00:07]} Be7 {[%emt 0:00:14]} 14. Bf4 {[%emt 0:00:42]} Bxc4 {
[%emt 0:00:39]} 15. Nxc4 {[%emt 0:00:04]} Nd3 {[%emt 0:00:01]} 16. Rc2 {[%emt
0:00:15]} Nxf4 {[%emt 0:00:19]} 17. exf4 {[%emt 0:00:04]} Qxd1 {[%emt 0:00:24]}
18. Rxd1 {[%emt 0:00:02]} b5 {[%emt 0:00:10]} 19. Ne3 {[%emt 0:00:10]} Rxc2 {
[%emt 0:00:18]} 20. Nxc2 {[%emt 0:00:01]} Rc8 {[%emt 0:00:11]} 21. Ne3 {[%emt
0:00:02]} h6 {[%emt 0:00:13]} 22. h3 {[%emt 0:00:16]} Ne4 {[%emt 0:01:23]} 23.
f5 {[%emt 0:00:27]} exf5 {[%emt 0:00:50]} 24. Nxf5 {[%emt 0:00:02]} Bf6 {[%emt
0:00:06]} 25. Re1 {[%emt 0:00:38]} Ng5 {[%emt 0:00:47]} 26. Nxg5 {[%emt 0:00:
13]} Bxg5 {[%emt 0:00:03]} 27. Ne7+ {[%emt 0:00:02]} Bxe7 {[%emt 0:00:06]} 28.
Rxe7 {[%emt 0:00:02]} Rc2 {[%emt 0:00:07]} 29. Rxa7 {[%emt 0:00:13]} Rxb2 {
[%emt 0:00:24]} 30. a3 {[%emt 0:01:49]} 1/2-1/2

[Event "Dvaro taure"]
[Site "Taujenai, Lithuania"]
[Date "2021.11.28"]
[Round "7.22"]
[White "Mikulinaite, Meta"]
[Black "Paliulis, Aivaras"]
[Result "0-1"]
[WhiteElo "1104"]
[BlackElo "1714"]
[PlyCount "100"]
[EventDate "2021.??.??"]
[TimeControl "10+5"]
[WhiteClock "0:01:02"]
[BlackClock "0:01:51"]

1. e4 {[%emt 0:00:01]} e5 {[%emt 0:00:00]} 2. Nf3 {[%emt 0:00:03]} Nc6 {[%emt
0:00:00]} 3. Bc4 {[%emt 0:00:03]} Bc5 {[%emt 0:00:00]} 4. O-O {[%emt 0:00:05]}
d6 {[%emt 0:00:02]} 5. h3 {[%emt 0:00:00]} Be6 {[%emt 0:00:02]} 6. Bb3 {[%emt
0:00:02]} Nf6 {[%emt 0:00:02]} 7. Re1 {[%emt 0:00:04]} O-O {[%emt 0:00:16]} 8.
Ng5 {[%emt 0:00:21]} Nd4 {[%emt 0:01:03]} 9. Bxe6 {[%emt 0:00:08]} Nxe6 {[%emt
0:00:07]} 10. Nf3 {[%emt 0:00:08]} Nh5 {[%emt 0:00:23]} 11. Nxe5 {[%emt 0:00:
28]} Qh4 {[%emt 0:02:04]} 12. Ng4 {[%emt 0:01:25]} Nhf4 {[%emt 0:00:40]} 13.
Qf3 {[%emt 0:01:00]} h5 {[%emt 0:02:21]} 14. Ne3 {[%emt 0:01:12]} Nd4 {[%emt 0:
00:51]} 15. Qg3 {[%emt 0:01:02]} Nde2+ {[%emt 0:00:18]} 16. Kh2 {[%emt 0:00:52]
} Nxg3 {[%emt 0:00:31]} 17. fxg3 {[%emt 0:00:03]} Qf6 {[%emt 0:00:09]} 18. gxf4
{[%emt 0:00:21]} Qxf4+ {[%emt 0:00:00]} 19. Kg1 {[%emt 0:00:14]} Qxe4 {[%emt 0:
00:33]} 20. Nc3 {[%emt 0:00:24]} Bxe3+ {[%emt 0:00:10]} 21. Rxe3 {[%emt 0:00:
13]} Qxc2 {[%emt 0:00:03]} 22. Rg3 {[%emt 0:00:11]} Rae8 {[%emt 0:00:15]} 23.
Rf3 {[%emt 0:01:01]} Re1+ {[%emt 0:00:12]} 24. Rf1 {[%emt 0:00:02]} Rfe8 {
[%emt 0:00:01]} 25. d4 {[%emt 0:00:37]} Rxf1+ {[%emt 0:00:22]} 26. Kxf1 {[%emt
0:00:01]} Qd3+ {[%emt 0:00:03]} 27. Kf2 {[%emt 0:00:12]} Qxd4+ {[%emt 0:00:05]}
28. Kg3 {[%emt 0:00:13]} Re1 {[%emt 0:00:18]} 29. a3 {[%emt 0:00:40]} Qd3+ {
[%emt 0:00:27]} 30. Kh2 {[%emt 0:00:06]} Qc2 {[%emt 0:00:08]} 31. Na2 {[%emt 0:
00:09]} d5 {[%emt 0:00:11]} 32. Nb4 {[%emt 0:00:05]} Qc4 {[%emt 0:00:07]} 33.
Na2 {[%emt 0:00:11]} d4 {[%emt 0:00:04]} 34. b4 {[%emt 0:00:44]} d3 {[%emt 0:
00:05]} 35. a4 {[%emt 0:00:15]} d2 {[%emt 0:00:02]} 36. Bxd2 {[%emt 0:00:02]}
Rxa1 {[%emt 0:00:02]} 37. Nc1 {[%emt 0:00:09]} Rxc1 {[%emt 0:00:02]} 38. Bxc1 {
[%emt 0:00:01]} Qxc1 {[%emt 0:00:01]} 39. Kg3 {[%emt 0:00:02]} Qc4 {[%emt 0:00:
02]} 40. Kh2 {[%emt 0:00:02]} Qxb4 {[%emt 0:00:01]} 41. Kg3 {[%emt 0:00:02]}
Qxa4 {[%emt 0:00:01]} 42. Kh2 {[%emt 0:00:01]} Qd4 {[%emt 0:00:02]} 43. Kg3 {
[%emt 0:00:02]} c5 {[%emt 0:00:01]} 44. Kh2 {[%emt 0:00:03]} c4 {[%emt 0:00:00]
} 45. Kg3 {[%emt 0:00:01]} c3 {[%emt 0:00:01]} 46. Kh2 {[%emt 0:00:03]} c2 {
[%emt 0:00:01]} 47. Kg3 {[%emt 0:00:02]} c1=Q {[%emt 0:00:02]} 48. Kh2 {[%emt
0:00:02]} Qcd2 {[%emt 0:00:03]} 49. Kh1 {[%emt 0:00:04]} Q4f2 {[%emt 0:00:06]}
50. Kh2 {[%emt 0:00:03]} Qxg2# {[%emt 0:00:02]} 0-1

[Event "Dvaro taure"]
[Site "Taujenai, Lithuania"]
[Date "2021.11.28"]
[Round "7.23"]
[White "Griksaite, Ruta"]
[Black "Zalimas, Ugnius"]
[Result "0-1"]
[WhiteElo "1098"]
[BlackElo "1392"]
[PlyCount "104"]
[EventDate "2021.??.??"]
[TimeControl "10+5"]
[WhiteClock "0:04:18"]
[BlackClock "0:07:38"]

1. d4 {[%emt 0:00:01]} Nf6 {[%emt 0:00:00]} 2. Nf3 {[%emt 0:00:02]} d6 {[%emt
0:00:02]} 3. Bf4 {[%emt 0:00:05]} g6 {[%emt 0:00:02]} 4. e3 {[%emt 0:00:02]}
Bg7 {[%emt 0:00:00]} 5. h3 {[%emt 0:00:06]} O-O {[%emt 0:00:02]} 6. c3 {[%emt
0:00:02]} b6 {[%emt 0:00:02]} 7. Bc4 {[%emt 0:00:20]} Bb7 {[%emt 0:00:02]} 8.
Nbd2 {[%emt 0:00:02]} Nbd7 {[%emt 0:00:02]} 9. O-O {[%emt 0:00:10]} Qe8 {[%emt
0:00:18]} 10. Re1 {[%emt 0:00:15]} e5 {[%emt 0:00:03]} 11. Bg3 {[%emt 0:00:30]}
e4 {[%emt 0:00:27]} 12. Nh2 {[%emt 0:00:09]} Qe7 {[%emt 0:00:22]} 13. Nhf1 {
[%emt 0:00:11]} c5 {[%emt 0:00:13]} 14. a3 {[%emt 0:00:09]} d5 {[%emt 0:00:19]}
15. Ba2 {[%emt 0:00:08]} c4 {[%emt 0:00:30]} 16. Qc2 {[%emt 0:00:12]} Rac8 {
[%emt 0:00:07]} 17. Bh2 {[%emt 0:00:18]} b5 {[%emt 0:00:04]} 18. Rad1 {[%emt 0:
00:15]} a5 {[%emt 0:00:04]} 19. Qc1 {[%emt 0:01:11]} Ra8 {[%emt 0:00:16]} 20.
f3 {[%emt 0:00:14]} exf3 {[%emt 0:00:19]} 21. gxf3 {[%emt 0:00:12]} Qe6 {[%emt
0:01:25]} 22. Kg2 {[%emt 0:00:21]} Nb6 {[%emt 0:00:04]} 23. Bb1 {[%emt 0:00:06]
} Bc8 {[%emt 0:00:05]} 24. e4 {[%emt 0:00:28]} Qxh3+ {[%emt 0:00:05]} 25. Kg1 {
[%emt 0:00:02]} dxe4 {[%emt 0:00:14]} 26. fxe4 {[%emt 0:00:02]} Bg4 {[%emt 0:
00:02]} 27. Nf3 {[%emt 0:00:26]} Bxf3 {[%emt 0:00:02]} 28. Rd2 {[%emt 0:00:04]}
Bh6 {[%emt 0:00:06]} 29. Ne3 {[%emt 0:00:08]} Nxe4 {[%emt 0:00:05]} 30. Bxe4 {
[%emt 0:00:09]} Bxe4 {[%emt 0:00:03]} 31. Rf2 {[%emt 0:00:13]} Nd5 {[%emt 0:00:
24]} 32. Qd2 {[%emt 0:00:40]} Nxe3 {[%emt 0:00:09]} 33. Rxe3 {[%emt 0:00:35]}
Bxe3 {[%emt 0:00:03]} 34. Qe2 {[%emt 0:00:06]} Bxf2+ {[%emt 0:00:04]} 35. Qxf2
{[%emt 0:00:01]} Qg4+ {[%emt 0:00:08]} 36. Kf1 {[%emt 0:00:07]} Qd1+ {[%emt 0:
00:04]} 37. Qe1 {[%emt 0:00:05]} Bg2+ {[%emt 0:00:04]} 38. Kf2 {[%emt 0:00:08]}
Qxe1+ {[%emt 0:00:06]} 39. Kxe1 {[%emt 0:00:03]} Rfe8+ {[%emt 0:00:00]} 40. Kf2
{[%emt 0:00:05]} Be4 {[%emt 0:00:02]} 41. Be5 {[%emt 0:00:16]} Rxe5 {[%emt 0:
00:03]} 42. dxe5 {[%emt 0:00:03]} Re8 {[%emt 0:00:02]} 43. Ke3 {[%emt 0:00:04]}
Rxe5 {[%emt 0:00:02]} 44. Kd2 {[%emt 0:00:04]} Bd3 {[%emt 0:00:03]} 45. Kc1 {
[%emt 0:00:03]} h5 {[%emt 0:00:06]} 46. a4 {[%emt 0:00:17]} bxa4 {[%emt 0:00:
03]} 47. b4 {[%emt 0:00:03]} axb3 {[%emt 0:00:03]} 48. Kb2 {[%emt 0:00:02]} h4
{[%emt 0:00:03]} 49. Kc1 {[%emt 0:00:07]} h3 {[%emt 0:00:02]} 50. Kb2 {[%emt 0:
00:01]} Re2+ {[%emt 0:00:08]} 51. Kc1 {[%emt 0:00:09]} h2 {[%emt 0:00:11]} 52.
Kd1 {[%emt 0:00:03]} h1=Q# {[%emt 0:00:03]} 0-1

[Event "Dvaro taure"]
[Site "Taujenai, Lithuania"]
[Date "2021.11.28"]
[Round "7.24"]
[White "Pokrovskij, Denis"]
[Black "Jasas, Ignas"]
[Result "0-1"]
[WhiteElo "1085"]
[BlackElo "1216"]
[PlyCount "58"]
[EventDate "2021.??.??"]
[TimeControl "10+5"]
[WhiteClock "0:05:05"]
[BlackClock "0:05:55"]

1. c4 {[%emt 0:00:00]} Nf6 {[%emt 0:00:02]} 2. Nc3 {[%emt 0:00:04]} g6 {[%emt
0:00:02]} 3. g3 {[%emt 0:00:02]} d5 {[%emt 0:00:02]} 4. cxd5 {[%emt 0:00:02]}
Nxd5 {[%emt 0:00:02]} 5. d4 {[%emt 0:00:02]} Nxc3 {[%emt 0:00:01]} 6. bxc3 {
[%emt 0:00:01]} Bg7 {[%emt 0:00:01]} 7. Bg2 {[%emt 0:00:08]} O-O {[%emt 0:00:
02]} 8. e3 {[%emt 0:00:05]} c5 {[%emt 0:00:02]} 9. Ne2 {[%emt 0:00:04]} Bg4 {
[%emt 0:00:09]} 10. Bxb7 {[%emt 0:00:09]} Nd7 {[%emt 0:00:17]} 11. Bxa8 {[%emt
0:00:42]} Qxa8 {[%emt 0:00:01]} 12. Rf1 {[%emt 0:00:06]} cxd4 {[%emt 0:00:15]}
13. cxd4 {[%emt 0:00:04]} e5 {[%emt 0:00:08]} 14. Bb2 {[%emt 0:00:17]} exd4 {
[%emt 0:00:15]} 15. Bxd4 {[%emt 0:00:10]} Ne5 {[%emt 0:00:28]} 16. Bxe5 {[%emt
0:00:50]} Bxe5 {[%emt 0:00:02]} 17. Rc1 {[%emt 0:00:21]} Rd8 {[%emt 0:00:31]}
18. Qa4 {[%emt 0:02:09]} Bxe2 {[%emt 0:01:05]} 19. Kxe2 {[%emt 0:00:06]} Qb7 {
[%emt 0:00:12]} 20. Qc4 {[%emt 0:00:24]} Kg7 {[%emt 0:01:04]} 21. f4 {[%emt 0:
00:04]} Bf6 {[%emt 0:00:04]} 22. Rfd1 {[%emt 0:00:15]} Qg2+ {[%emt 0:00:02]}
23. Ke1 {[%emt 0:00:16]} Qg1+ {[%emt 0:00:26]} 24. Qf1 {[%emt 0:00:17]} Qxe3+ {
[%emt 0:00:03]} 25. Qe2 {[%emt 0:00:12]} Qg1+ {[%emt 0:00:08]} 26. Qf1 {[%emt
0:00:08]} Re8+ {[%emt 0:01:03]} 27. Kd2 {[%emt 0:00:08]} Qe3+ {[%emt 0:00:02]}
28. Kc2 {[%emt 0:00:04]} Qc3+ {[%emt 0:00:01]} 29. Kb1 {[%emt 0:00:13]} Qb2# {
[%emt 0:00:05] Qe1 [%clk 00:05:02] [%emt 00:00:04]} 0-1

[Event "Dvaro taure"]
[Site "Taujenai, Lithuania"]
[Date "2021.11.28"]
[Round "7.25"]
[White "Matulaitis, Mantas"]
[Black "Griksaite, Laura"]
[Result "1-0"]
[WhiteElo "1176"]
[BlackElo "1092"]
[PlyCount "47"]
[EventDate "2021.??.??"]
[TimeControl "10+5"]
[WhiteClock "0:09:01"]
[BlackClock "0:10:03"]

1. b3 {[%emt 0:00:00]} e5 {[%emt 0:00:02]} 2. Bb2 {[%emt 0:00:02]} Nc6 {[%emt
0:00:03]} 3. e3 {[%emt 0:00:00]} Nf6 {[%emt 0:00:02]} 4. Bb5 {[%emt 0:00:00]}
Bc5 {[%emt 0:00:03]} 5. Bxc6 {[%emt 0:00:09]} dxc6 {[%emt 0:00:02]} 6. Bxe5 {
[%emt 0:00:12]} Qe7 {[%emt 0:00:04]} 7. Bb2 {[%emt 0:00:10]} Bd7 {[%emt 0:00:
05]} 8. Ne2 {[%emt 0:00:13]} O-O {[%emt 0:00:06]} 9. d3 {[%emt 0:00:07]} Bg4 {
[%emt 0:00:04]} 10. O-O {[%emt 0:00:04]} Bd6 {[%emt 0:00:10]} 11. d4 {[%emt 0:
00:48]} c5 {[%emt 0:00:11]} 12. Nd2 {[%emt 0:00:02]} cxd4 {[%emt 0:00:02]} 13.
Bxd4 {[%emt 0:00:06]} c5 {[%emt 0:00:06]} 14. Bxf6 {[%emt 0:00:10]} Qxf6 {
[%emt 0:00:03]} 15. Ne4 {[%emt 0:00:04]} Bxe2 {[%emt 0:00:10]} 16. Nxf6+ {
[%emt 0:00:02]} gxf6 {[%emt 0:00:02]} 17. Qxe2 {[%emt 0:00:02]} Rad8 {[%emt 0:
00:04]} 18. Qg4+ {[%emt 0:00:12]} Kh8 {[%emt 0:00:02]} 19. f4 {[%emt 0:00:11]}
c4 {[%emt 0:00:07]} 20. Rf3 {[%emt 0:00:03]} Bc5 {[%emt 0:00:02]} 21. Rh3 {
[%emt 0:00:12]} Rd2 {[%emt 0:00:06]} 22. Qh4 {[%emt 0:00:09]} h5 {[%emt 0:00:
20]} 23. Qxh5+ {[%emt 0:00:04]} Kg8 {[%emt 0:00:03]} 24. Qh7# {[%emt 0:00:03]}
1-0